bitfinex/quotes_BTCUSD_20241226
["timestamp","ask_amount","ask_price","bid_price","bid_amount"]
[1735246613753,0.014156,95704.0,95701.0,0.208982]
[1735246614084,0.10398632,95703.0,95701.0,0.208982]
[1735246615777,0.10498632,95703.0,95701.0,0.208982]
[1735246616070,0.10498632,95703.0,95699.0,0.208987]
[1735246616071,0.10498632,95703.0,95693.0,0.209001]
[1735246616276,0.0829,95693.0,95689.0,0.20901]
[1735246616504,0.11529104,95692.0,95689.0,0.20901]
[1735246616703,0.0487,95691.0,95688.0,0.209012]
[1735246616908,0.10398632,95690.0,95688.0,0.209012]
[1735246617368,0.10398632,95690.0,95687.0,0.0001712]
[1735246617572,0.10398632,95690.0,95689.0,0.001]
[1735246617773,0.13867542,95690.0,95689.0,0.001]
[1735246617992,0.13867542,95690.0,95688.0,0.20901]
[1735246618472,0.13867542,95690.0,95687.0,0.0001712]
[1735246618687,0.13867542,95690.0,95688.0,0.209183]
[1735246618904,0.13867542,95690.0,95688.0,0.000171]
[1735246619050,0.02815801,95689.0,95688.0,0.000171]
[1735246619256,0.13214433,95689.0,95688.0,0.000171]
[1735246619457,0.13214433,95689.0,95688.0,0.002171]
[1735246619876,0.25280724,95689.0,95688.0,0.002171]
[1735246620233,0.25280724,95689.0,95688.0,0.003171]
[1735246620422,0.25280724,95689.0,95688.0,0.000171]
[1735246620676,0.25280724,95689.0,95688.0,0.002171]
[1735246620890,0.25280724,95689.0,95688.0,0.000171]
[1735246621307,0.25380724,95689.0,95688.0,0.001171]
[1735246622448,0.25280724,95689.0,95688.0,0.000171]
[1735246622855,0.25380724,95689.0,95688.0,0.001171]
[1735246623078,0.25380724,95689.0,95688.0,0.000171]
[1735246623320,0.26988376,95689.0,95688.0,0.001171]
[1735246624360,0.1,95688.0,95673.0,8.56e-05]
[1735246624565,0.10398632,95681.0,95677.0,0.209036]
[1735246625670,0.10398632,95681.0,95673.0,8.56e-05]
[1735246625671,0.1,95674.0,95673.0,8.56e-05]
[1735246625877,0.43658632,95674.0,95673.0,8.56e-05]
[1735246626892,0.43758632,95674.0,95673.0,8.56e-05]
[1735246627073,0.49541585,95674.0,95673.0,8.56e-05]
[1735246627493,0.64541585,95674.0,95673.0,8.56e-05]
[1735246628460,0.1,95659.0,95647.0,0.2091]
[1735246628782,0.10398632,95652.0,95648.0,0.2091]
[1735246629426,0.0495,95650.0,95647.0,5.946e-05]
[1735246629635,0.10398632,95649.0,95647.0,5.946e-05]
[1735246629812,0.10398632,95648.0,95647.0,5.946e-05]
[1735246630860,0.10398632,95648.0,95647.0,0.00105946]
[1735246631057,0.10398632,95648.0,95647.0,5.946e-05]
[1735246631274,0.13971396,95648.0,95647.0,5.946e-05]
[1735246632278,0.13971396,95648.0,95647.0,0.00105946]
[1735246632501,0.13971396,95648.0,95647.0,0.00305946]
[1735246632685,0.13971396,95648.0,95647.0,0.00105946]
[1735246632889,0.14271396,95648.0,95647.0,5.946e-05]
[1735246633093,0.14371396,95648.0,95647.0,5.946e-05]
[1735246633311,0.10798632,95648.0,95643.0,8.56e-05]
[1735246633514,0.11098632,95648.0,95645.0,0.209106]
[1735246634250,0.10398632,95648.0,95645.0,0.209106]
[1735246634459,0.10398632,95647.0,95643.0,0.00019397]
[1735246634659,0.10398632,95644.0,95643.0,0.00019397]
[1735246634809,0.11448495,95644.0,95643.0,0.00019397]
[1735246636214,0.11548495,95644.0,95643.0,0.00019397]
[1735246636427,0.11608495,95644.0,95643.0,0.00019397]
[1735246636630,0.11908495,95644.0,95643.0,0.00019397]
[1735246637306,0.12208495,95644.0,95643.0,0.00019397]
[1735246637508,0.11608495,95644.0,95643.0,0.00019397]
[1735246637928,0.11708495,95644.0,95643.0,0.00019397]
[1735246638253,0.11608495,95644.0,95643.0,0.00019397]
[1735246638488,0.11608495,95644.0,95639.0,0.209119]
[1735246638665,0.0116085,95643.0,95639.0,0.209119]
[1735246638863,0.10398632,95642.0,95639.0,0.209119]
[1735246640559,0.10598632,95642.0,95639.0,0.209119]
[1735246641279,0.10698632,95642.0,95639.0,0.209119]
[1735246641846,0.10698632,95642.0,95635.0,0.209126]
[1735246642049,0.01201948,95641.0,95635.0,0.209126]
[1735246642249,0.10398632,95640.0,95636.0,0.418252]
[1735246642882,0.10398632,95640.0,95634.0,0.00013726]
[1735246643084,0.10398632,95637.0,95634.0,0.00013726]
[1735246643285,0.10398632,95637.0,95634.0,0.13626726]
[1735246643522,0.10398632,95637.0,95631.0,0.209137]
[1735246643729,0.10398632,95637.0,95634.0,0.20913]
[1735246644095,0.10398632,95637.0,95634.0,0.41826]
[1735246644977,0.10398632,95637.0,95634.0,0.4183456]
[1735246647785,0.12461531,95637.0,95634.0,0.2092156]
[1735246648399,0.10398632,95637.0,95634.0,8.56e-05]
[1735246648609,0.10398632,95637.0,95634.0,0.2092156]
[1735246649450,0.10698632,95637.0,95634.0,0.2102156]
[1735246649592,0.10398632,95637.0,95634.0,0.4183456]
[1735246649795,0.10598632,95637.0,95634.0,0.4183456]
[1735246650276,0.10998632,95637.0,95634.0,0.4183456]
[1735246651390,0.10598632,95637.0,95634.0,0.4183456]
[1735246651590,0.12711531,95637.0,95634.0,0.4183456]
[1735246651802,0.12811531,95637.0,95634.0,0.4183456]
[1735246652015,0.10698632,95637.0,95634.0,0.4183456]
[1735246652238,0.003,95637.0,95634.0,0.4183456]
[1735246652443,0.003,95637.0,95636.0,0.359126]
[1735246653265,0.002,95637.0,95636.0,0.359126]
[1735246654078,0.10598632,95637.0,95636.0,0.209126]
[1735246654291,0.11458495,95637.0,95636.0,0.214126]
[1735246654496,0.10640667,95637.0,95636.0,0.22826467]
[1735246654725,0.09580804,95637.0,95636.0,0.22826467]
[1735246655085,0.09580804,95637.0,95636.0,0.23726467]
[1735246655283,0.09580804,95637.0,95636.0,0.22826467]
[1735246655540,0.09580804,95637.0,95636.0,0.005]
[1735246655711,0.09580804,95637.0,95636.0,0.009]
[1735246656033,0.11538884,95637.0,95634.0,8.56e-05]
[1735246656358,0.18658632,95635.0,95634.0,8.56e-05]
[1735246657343,0.10398632,95635.0,95634.0,8.56e-05]
[1735246657541,0.10398632,95635.0,95634.0,0.2092156]
[1735246657740,0.10598632,95635.0,95634.0,8.56e-05]
[1735246657902,0.12697935,95635.0,95634.0,8.56e-05]
[1735246658300,0.12697935,95635.0,95630.0,0.0001708]
[1735246658577,0.12857935,95635.0,95630.0,0.0001708]
[1735246658883,0.13157935,95635.0,95630.0,0.0001708]
[1735246659215,0.12857935,95635.0,95630.0,0.0001708]
[1735246659420,0.01500946,95634.0,95630.0,0.0001708]
[1735246659579,0.10398632,95633.0,95631.0,0.209136]
[1735246659780,0.10398632,95633.0,95630.0,0.0001708]
[1735246659980,0.10398632,95633.0,95631.0,0.209137]
[1735246660192,0.00408496,95632.0,95631.0,0.209137]
[1735246660418,0.12479018,95632.0,95631.0,0.209137]
[1735246660851,0.12479018,95632.0,95630.0,0.0001708]
[1735246661058,0.10398632,95631.0,95630.0,0.0001708]
[1735246662342,0.10598632,95631.0,95630.0,0.0001708]
[1735246662546,0.10598632,95631.0,95630.0,0.2093098]
[1735246662997,0.12291616,95631.0,95630.0,0.2093098]
[1735246663402,0.12291616,95631.0,95625.0,0.209148]
[1735246663403,0.002,95631.0,95626.0,0.0763]
[1735246663605,0.003,95631.0,95630.0,0.209139]
[1735246664080,0.002,95631.0,95630.0,0.209139]
[1735246664283,0.00408496,95632.0,95630.0,0.209139]
[1735246664491,0.003,95631.0,95630.0,0.209139]
[1735246664900,0.001,95631.0,95630.0,0.209139]
[1735246666034,0.00408496,95632.0,95630.0,0.218139]
[1735246666277,0.00408496,95632.0,95631.0,0.00104554]
[1735246667113,0.0001712,95637.0,95631.0,0.25464554]
[1735246667320,0.0001712,95637.0,95635.0,0.173]
[1735246667321,2e-07,95637.0,95635.0,0.173]
[1735246667529,2e-07,95637.0,95636.0,0.30234532]
[1735246667730,0.0001712,95645.0,95637.0,0.173]
[1735246667731,4e-07,95645.0,95637.0,0.173]
[1735246667911,4e-07,95645.0,95644.0,0.232108]
[1735246668111,4e-07,95645.0,95644.0,0.462708]
[1735246668351,0.0817,95703.0,95653.0,0.1]
[1735246668540,0.10398632,95688.0,95686.0,0.418032]
[1735246668736,0.00024065,95689.0,95686.0,0.418032]
[1735246668938,0.10422697,95689.0,95686.0,0.418032]
[1735246669683,0.00024065,95689.0,95686.0,0.418032]
[1735246669886,0.00024065,95689.0,95688.0,0.209012]
[1735246671305,0.00024065,95689.0,95688.0,0.210012]
[1735246671485,0.00024065,95689.0,95688.0,0.209012]
[1735246672378,0.00024065,95689.0,95688.0,0.217012]
[1735246672957,0.00024065,95689.0,95688.0,0.215012]
[1735246673528,0.00024065,95689.0,95688.0,0.006]
[1735246673787,0.00024065,95689.0,95688.0,0.209012]
[1735246674293,0.00024065,95689.0,95688.0,0.213012]
[1735246674535,0.00024065,95689.0,95688.0,0.209012]
[1735246675313,0.00124065,95689.0,95688.0,0.209012]
[1735246675527,0.00124065,95689.0,95688.0,0.214012]
[1735246675853,0.00024065,95689.0,95688.0,0.214012]
[1735246676068,0.00024065,95689.0,95688.0,0.216012]
[1735246677554,0.00024065,95689.0,95688.0,0.389012]
[1735246677761,0.00024065,95689.0,95688.0,0.384012]
[1735246678224,0.00024065,95689.0,95688.0,0.382012]
[1735246678681,0.000171,95760.0,95701.0,0.0806]
[1735246678899,0.27941786,95790.0,95689.0,0.15]
[1735246678900,0.27941786,95790.0,95759.0,0.15]
[1735246679110,0.13600972,95773.0,95772.0,0.1]
[1735246679323,0.12545394,95773.0,95772.0,0.1]
[1735246679569,0.21196721,95780.0,95779.0,0.03823882]
[1735246679796,0.00051757,95780.0,95779.0,0.381814]
[1735246680001,0.28587093,95833.0,95808.0,0.35875]
[1735246680207,0.10418632,95809.0,95808.0,0.35875]
[1735246680428,0.10434154,95809.0,95808.0,0.35875]
[1735246680645,2.2e-07,95809.0,95808.0,0.35875]
[1735246680849,2.2e-07,95809.0,95808.0,0.45953638]
[1735246681068,2.2e-07,95809.0,95808.0,0.48175]
[1735246681287,0.0002,95849.0,95822.0,0.38172]
[1735246681288,6.2e-07,95823.0,95822.0,0.38172]
[1735246681733,0.0002,95849.0,95822.0,0.38172]
[1735246681734,0.0002,95849.0,95837.0,0.023]
[1735246681955,0.0002,95849.0,95842.0,0.15]
[1735246682159,9.9e-07,95849.0,95848.0,0.381663]
[1735246682332,0.208449,95947.0,95848.0,0.381663]
[1735246682333,0.02117045,95911.0,95900.0,0.20855]
[1735246682576,0.10460706,95901.0,95900.0,0.20855]
[1735246683310,0.10398632,95901.0,95900.0,0.20855]
[1735246683514,0.10398632,95901.0,95886.0,0.208578]
[1735246683726,0.10398632,95901.0,95865.0,0.15]
[1735246683727,0.06570309,95904.0,95900.0,0.29049075]
[1735246684002,0.06570309,95901.0,95900.0,0.23482658]
[1735246684256,0.00657031,95901.0,95900.0,0.17986087]
[1735246684462,0.10398632,95901.0,95888.0,0.23732786]
[1735246684663,0.09423082,95898.0,95889.0,0.208574]
[1735246685075,0.023,95920.0,95889.0,0.208574]
[1735246685299,0.023,95920.0,95889.0,0.20909074]
[1735246685503,0.001,95901.0,95890.0,0.208572]
[1735246685713,0.001,95901.0,95889.0,0.00051674]
[1735246685962,0.01191635,95919.0,95889.0,0.00051674]
[1735246686150,0.10398632,95899.0,95889.0,0.00051674]
[1735246687416,0.10398632,95899.0,95889.0,0.00151674]
[1735246687826,0.10398632,95899.0,95889.0,0.00251674]
[1735246688357,0.10398632,95899.0,95870.0,0.1]
[1735246688673,0.01172628,95898.0,95870.0,0.25]
[1735246688929,0.10398632,95897.0,95874.0,0.208605]
[1735246689135,0.10398632,95897.0,95870.0,0.25]
[1735246689345,0.10398632,95897.0,95886.0,0.208579]
[1735246690666,0.10398632,95897.0,95880.0,0.13688942]
[1735246690840,0.10398632,95897.0,95894.0,0.208563]
[1735246691619,0.10398632,95897.0,95887.0,0.208577]
[1735246691823,0.10398632,95897.0,95886.0,0.001]
[1735246692245,0.10398632,95897.0,95870.0,0.28688942]
[1735246692246,0.10398632,95897.0,95894.0,0.208561]
[1735246692449,0.003,95897.0,95891.0,0.1]
[1735246692655,0.003,95897.0,95895.0,0.208559]
[1735246693283,0.000516,95899.0,95895.0,0.135559]
[1735246693510,0.000516,95899.0,95893.0,0.1]
[1735246693713,0.001,95897.0,95895.0,0.208559]
[1735246693928,0.000516,95899.0,95895.0,0.208559]
[1735246694131,0.000516,95899.0,95895.0,0.417118]
[1735246694332,0.000516,95899.0,95898.0,0.208554]
[1735246695558,0.0827,95921.0,95898.0,0.208554]
[1735246695829,0.11693632,95920.0,95898.0,0.20870892]
[1735246696291,0.11693632,95920.0,95898.0,0.41726292]
[1735246696555,0.10398632,95920.0,95904.0,0.208541]
[1735246696769,0.10398632,95920.0,95898.0,0.20870892]
[1735246696770,0.10398632,95920.0,95898.0,0.41726292]
[1735246696974,0.10398632,95920.0,95898.0,0.41826292]
[1735246697169,0.10398632,95920.0,95903.0,0.208542]
[1735246697717,0.10398632,95920.0,95908.0,0.208532]
[1735246698116,0.10398632,95920.0,95899.0,0.1]
[1735246698317,0.10398632,95920.0,95902.0,0.027]
[1735246698527,0.10398632,95920.0,95903.0,0.208543]
[1735246699170,0.10193498,95920.0,95903.0,0.208543]
[1735246699951,0.10193498,95920.0,95903.0,0.209543]
[1735246700206,0.10453498,95920.0,95903.0,0.209543]
[1735246700574,0.10398632,95919.0,95903.0,0.209543]
[1735246700774,0.10398632,95919.0,95903.0,0.208543]
[1735246701381,0.11438495,95919.0,95902.0,0.1]
[1735246701577,0.10398632,95919.0,95903.0,0.208544]
[1735246702670,0.10398632,95919.0,95904.0,0.208541]
[1735246702887,0.02115344,95935.0,95918.0,0.1]
[1735246703092,0.041752,95967.0,95933.0,0.1]
[1735246703295,0.02093751,95956.0,95930.0,0.1]
[1735246703506,0.01360289,95962.0,95939.0,0.1]
[1735246703507,0.10398632,95955.0,95939.0,0.1]
[1735246703686,0.10398632,95955.0,95939.0,0.308465]
[1735246703890,0.10382861,95955.0,95939.0,0.308465]
[1735246704102,0.10382861,95955.0,95944.0,0.208452]
[1735246704513,0.10508344,95955.0,95946.0,0.20845]
[1735246704922,0.10508344,95955.0,95945.0,0.023]
[1735246705350,0.10508344,95955.0,95946.0,0.20845]
[1735246707203,0.10508344,95955.0,95945.0,0.023]
[1735246707609,0.01050834,95954.0,95939.0,0.208465]
[1735246707814,0.11449466,95954.0,95939.0,0.208465]
[1735246708019,0.11449466,95954.0,95942.0,0.023]
[1735246708656,0.11449466,95954.0,95941.0,0.15946099]
[1735246709108,0.10398632,95953.0,95938.0,0.208466]
[1735246709318,0.01158349,95952.0,95934.0,0.23647599]
[1735246709496,0.10398632,95951.0,95934.0,0.23647599]
[1735246710247,0.10398632,95951.0,95934.0,0.02799999]
[1735246710458,0.10398632,95951.0,94350.0,0.25]
[1735246710459,0.10398632,95951.0,95924.0,0.208498]
[1735246711064,0.10398632,95951.0,95924.0,0.416996]
[1735246711261,0.011691,95950.0,95924.0,0.416996]
[1735246711466,0.10398632,95949.0,95924.0,0.416996]
[1735246711680,0.10398632,95949.0,95928.0,0.208488]
[1735246712209,0.10398632,95949.0,95920.0,0.208507]
[1735246712461,0.10398632,95949.0,95919.0,0.15]
[1735246712840,0.0200601,95948.0,95919.0,0.15]
[1735246713066,0.10398632,95947.0,95920.0,0.208507]
[1735246713290,0.10398632,95945.0,95919.0,0.15]
[1735246713741,0.10398632,95945.0,95924.0,0.208498]
[1735246715770,0.10398632,95945.0,95928.0,0.02799999]
[1735246716209,0.10398632,95945.0,95937.0,0.208468]
[1735246717256,7e-05,95962.0,95941.0,0.20846]
[1735246717502,0.10398632,95954.0,95941.0,0.20846]
[1735246717753,0.01053265,95953.0,95941.0,0.20846]
[1735246717952,0.10398632,95952.0,95941.0,0.20846]
[1735246718767,7e-05,95962.0,95940.0,0.02799999]
[1735246719002,7e-05,95962.0,95953.0,0.208435]
[1735246720871,0.01838361,95968.0,95947.0,0.625344]
[1735246721124,0.10398632,95967.0,95947.0,0.208448]
[1735246721800,0.10398632,95967.0,95955.0,0.208429]
[1735246722038,0.0002,95969.0,95963.0,0.208412]
[1735246722259,0.0002,95969.0,95966.0,0.208407]
[1735246723506,0.0002,95969.0,95961.0,0.208417]
[1735246723716,0.10398632,95968.0,95947.0,0.15]
[1735246723935,0.01041863,95967.0,95952.0,0.208437]
[1735246724145,0.10398632,95966.0,95952.0,0.208437]
[1735246724561,0.10398632,95966.0,95953.0,0.208435]
[1735246724968,0.10398632,95966.0,95950.0,0.208441]
[1735246725414,0.10398632,95966.0,95953.0,0.09189715]
[1735246725613,0.0114605,95965.0,95953.0,0.24189715]
[1735246725831,0.10398632,95964.0,95953.0,0.24189715]
[1735246725971,0.10398632,95964.0,95953.0,0.09189715]
[1735246726172,0.00406847,95963.0,95953.0,0.09189715]
[1735246726397,0.10398632,95962.0,95960.0,0.09189715]
[1735246726625,0.01195153,95961.0,95960.0,0.09189715]
[1735246726869,0.11593785,95961.0,95960.0,0.09189715]
[1735246727071,0.13658596,95961.0,95960.0,0.09189715]
[1735246727651,0.10398632,95961.0,95960.0,0.09189715]
[1735246727853,0.10398632,95961.0,95954.0,0.551614]
[1735246727854,0.10398632,95961.0,95957.0,0.09189715]
[1735246727997,0.10398632,95960.0,95957.0,0.09189715]
[1735246728734,0.10398632,95960.0,95957.0,0.01989714]
[1735246729301,0.10508632,95960.0,95957.0,0.01989714]
[1735246729606,0.11726497,95960.0,95957.0,0.01989714]
[1735246729811,0.11726497,95960.0,95952.0,0.13784572]
[1735246730440,0.11726497,95960.0,95953.0,0.208435]
[1735246730873,0.11726497,95960.0,95952.0,0.13784572]
[1735246730874,0.0831,95959.0,95952.0,0.13784572]
[1735246731095,0.10398632,95958.0,95952.0,0.13784572]
[1735246731309,0.03473721,95957.0,95952.0,0.13784572]
[1735246731541,0.10398632,95956.0,95952.0,0.13784572]
[1735246731977,0.02,95954.0,95952.0,0.13784572]
[1735246732182,0.10398632,95953.0,95952.0,0.13784572]
[1735246732601,0.10398632,95953.0,95952.0,0.0001706]
[1735246732816,0.12949654,95953.0,95952.0,0.0001706]
[1735246737071,0.14172396,95953.0,95952.0,0.0001706]
[1735246738783,0.14172396,95953.0,95933.0,0.208476]
[1735246738980,0.14187868,95953.0,95933.0,0.208476]
[1735246739751,0.14187868,95953.0,95936.0,0.20847]
[1735246739947,0.02797159,95952.0,95936.0,0.20847]
[1735246740109,0.10398632,95951.0,95933.0,0.208476]
[1735246740323,0.10398632,95951.0,95933.0,0.02799999]
[1735246740524,0.10398632,95951.0,95942.0,0.208457]
[1735246740726,0.10398632,95951.0,95942.0,0.416915]
[1735246740928,0.01363685,95950.0,95942.0,0.416915]
[1735246741154,0.00406847,95949.0,95942.0,0.208457]
[1735246741380,0.00406847,95949.0,95928.0,0.15]
[1735246741381,0.00406847,95949.0,95946.0,0.416898]
[1735246742408,0.00406847,95949.0,95948.0,0.05099999]
[1735246742821,0.00406847,95949.0,95948.0,0.208446]
[1735246743029,0.00406847,95949.0,95942.0,0.208458]
[1735246743234,0.00406847,95949.0,95943.0,0.208457]
[1735246743442,0.00406847,95949.0,95947.0,0.208447]
[1735246743644,0.00406847,95949.0,95929.0,0.01233547]
[1735246743645,0.10398632,95948.0,95933.0,0.208478]
[1735246743853,0.01082095,95947.0,95937.0,0.208469]
[1735246744056,0.11480727,95947.0,95934.0,0.208476]
[1735246744255,0.02,95940.0,95934.0,0.208474]
[1735246745087,0.02,95940.0,95929.0,0.15]
[1735246745294,0.02,95940.0,95933.0,0.208476]
[1735246745500,0.00406847,95949.0,95928.0,0.1]
[1735246745501,0.00406847,95949.0,95936.0,0.20847]
[1735246745705,0.10398632,95948.0,95929.0,0.15]
[1735246745909,0.10398632,95948.0,95936.0,0.0001706]
[1735246746756,0.07200001,95947.0,95936.0,0.0001706]
[1735246746962,0.07200001,95944.0,95936.0,0.0001706]
[1735246747166,0.07200001,95941.0,95936.0,0.0001706]
[1735246747379,0.10398632,95940.0,95936.0,0.0001706]
[1735246747800,0.0767,95939.0,95936.0,0.0001706]
[1735246748012,0.17598633,95937.0,95936.0,0.0001706]
[1735246748227,0.34674808,95937.0,95936.0,0.0001706]
[1735246748437,0.41476889,95937.0,95936.0,0.0001706]
[1735246748834,0.07200001,95926.0,95892.0,0.208567]
[1735246748966,0.10398632,95925.0,95892.0,0.208567]
[1735246749324,0.09121284,95920.0,95890.0,0.20857]
[1735246749454,0.10398632,95919.0,95891.0,0.20857]
[1735246749649,0.01759863,95918.0,95889.0,0.208574]
[1735246749883,0.0483,95915.0,95881.0,0.02799999]
[1735246750085,0.10398632,95914.0,95881.0,0.02799999]
[1735246750309,0.10398632,95914.0,95882.0,0.208589]
[1735246750521,0.10398632,95914.0,95882.0,0.209105]
[1735246750722,0.09121284,95900.0,95882.0,0.000516]
[1735246750924,0.12242708,95899.0,95882.0,0.000516]
[1735246751537,0.12242708,95899.0,95882.0,0.001516]
[1735246751732,0.12242708,95899.0,95882.0,0.000516]
[1735246752941,0.17598633,95883.0,95882.0,0.000516]
[1735246753165,0.07200001,95868.0,95856.0,0.0001706]
[1735246753374,0.16321285,95866.0,95856.0,0.0001706]
[1735246753595,0.02054288,95857.0,95856.0,0.0001706]
[1735246753796,0.09121284,95850.0,95834.0,0.0205943]
[1735246753999,0.10398632,95849.0,95834.0,0.0205943]
[1735246754217,0.17598633,95849.0,95834.0,0.0205943]
[1735246754404,0.208665,95847.0,95831.0,0.13784572]
[1735246754612,0.13714087,95841.0,95831.0,0.13784572]
[1735246754825,0.10398632,95840.0,95831.0,0.13784572]
[1735246755023,0.10398632,95840.0,95828.0,0.0001706]
[1735246755231,0.10398632,95840.0,95831.0,0.00015492]
[1735246755636,0.02054288,95857.0,95831.0,0.00015492]
[1735246755843,0.10398632,95855.0,95832.0,0.02799999]
[1735246756042,0.10398632,95855.0,95831.0,0.00115492]
[1735246756043,0.10398632,95855.0,95851.0,0.208656]
[1735246756248,0.07200001,95884.0,95848.0,0.02799999]
[1735246756590,0.0462,95888.0,95831.0,0.00115492]
[1735246756591,0.00406847,95866.0,95860.0,0.208637]
[1735246756811,0.00406847,95866.0,95854.0,0.02799999]
[1735246757021,0.00406847,95866.0,95857.0,0.208644]
[1735246757685,0.00406847,95866.0,95863.0,0.20863]
[1735246757860,0.00406847,95866.0,95863.0,0.20363]
[1735246758093,0.00506847,95866.0,95857.0,0.00015492]
[1735246758307,0.00406847,95866.0,95862.0,0.23663099]
[1735246758723,0.00506847,95866.0,95862.0,0.23663199]
[1735246759140,0.00506847,95866.0,95857.0,0.00015492]
[1735246759141,0.00606847,95866.0,95858.0,0.208641]
[1735246759492,0.00606847,95866.0,95857.0,0.00015492]
[1735246759697,0.10398632,95865.0,95857.0,0.00015492]
[1735246759932,0.01100548,95864.0,95857.0,0.00015492]
[1735246760135,0.10398632,95863.0,95857.0,0.00015492]
[1735246760762,0.10398632,95863.0,95862.0,0.001]
[1735246760969,0.10398632,95863.0,95857.0,0.00015492]
[1735246761408,0.001,95863.0,95857.0,0.00015492]
[1735246761542,0.00406847,95866.0,95857.0,0.00015492]
[1735246761736,0.001,95863.0,95857.0,0.00015492]
[1735246762150,0.00406847,95866.0,95864.0,0.208626]
[1735246762786,0.00406847,95866.0,95857.0,0.00015492]
[1735246762985,0.10398632,95865.0,95857.0,0.00015492]
[1735246763219,0.01080548,95864.0,95857.0,0.00015492]
[1735246763419,0.10398632,95863.0,95857.0,0.00015492]
[1735246763573,0.10398632,95863.0,95847.0,0.23666299]
[1735246763774,0.10398632,95863.0,95853.0,0.208651]
[1735246764006,0.10398632,95863.0,95857.0,0.001]
[1735246764216,0.01188603,95862.0,95849.0,0.208661]
[1735246764541,0.10398632,95861.0,95849.0,0.208661]
[1735246764749,0.10398632,95861.0,95843.0,0.208673]
[1735246764999,0.01188603,95862.0,95847.0,0.02799999]
[1735246765134,0.10398632,95862.0,95847.0,0.02799999]
[1735246765337,0.003,95863.0,95858.0,0.20864]
[1735246765567,0.003,95863.0,95862.0,0.02799999]
[1735246765974,0.003,95863.0,95862.0,0.27799999]
[1735246766808,0.003,95863.0,95862.0,0.27899999]
[1735246767009,0.00406847,95866.0,95863.0,0.567262]
[1735246767379,0.00406847,95866.0,95862.0,0.001]
[1735246767790,0.00406847,95866.0,95862.0,0.007]
[1735246767921,0.00406847,95866.0,95862.0,0.006]
[1735246768125,0.00406847,95866.0,95854.0,0.208649]
[1735246768396,0.00606847,95866.0,95862.0,0.002]
[1735246768610,0.00406847,95866.0,95862.0,0.002]
[1735246768779,0.00406847,95866.0,95854.0,0.02799999]
[1735246768983,0.10398632,95865.0,95847.0,0.15]
[1735246769225,0.01090548,95864.0,95855.0,0.208646]
[1735246769418,0.10398632,95863.0,95855.0,0.208646]
[1735246769604,0.10398632,95863.0,95851.0,0.208655]
[1735246769765,0.10398632,95863.0,95856.0,0.208646]
[1735246769978,0.00515387,95866.0,95853.0,0.02799999]
[1735246770196,0.00415387,95866.0,95863.0,0.02799999]
[1735246770407,0.00415387,95866.0,95864.0,0.23662699]
[1735246770408,0.00615387,95866.0,95864.0,0.23662699]
[1735246770616,0.00415387,95866.0,95864.0,0.23662699]
[1735246771231,0.00415387,95866.0,95865.0,0.02799999]
[1735246771437,0.00415387,95866.0,95865.0,0.02393152]
[1735246771438,0.0011854,95866.0,95865.0,0.02393152]
[1735246771641,0.0011854,95866.0,95865.0,0.101043]
[1735246771852,0.0011854,95866.0,95865.0,0.02393152]
[1735246772262,0.0011854,95866.0,95864.0,0.23455852]
[1735246772499,0.0011854,95866.0,95864.0,0.23255852]
[1735246772710,0.0011854,95866.0,95865.0,0.002]
[1735246773133,0.0011854,95866.0,95849.0,0.02393152]
[1735246773134,0.10517172,95866.0,95847.0,0.02410232]
[1735246773343,0.11450349,95865.0,95847.0,0.0001708]
[1735246773622,0.11450349,95865.0,95864.0,0.001]
[1735246773819,0.11450349,95865.0,95864.0,0.002]
[1735246774028,0.16110349,95865.0,95847.0,0.0001708]
[1735246774239,0.13714087,95860.0,95847.0,0.0001708]
[1735246774476,0.1339293,95859.0,95847.0,0.0001708]
[1735246775120,0.208654,95853.0,95847.0,0.0001708]
[1735246775331,0.31264932,95848.0,95847.0,0.0001708]
[1735246775538,0.31264932,95848.0,95847.0,0.0011708]
[1735246775539,0.53914932,95848.0,95847.0,0.0011708]
[1735246775742,0.67495528,95848.0,95847.0,0.0011708]
[1735246776159,0.67495528,95848.0,95828.0,0.0001706]
[1735246776160,0.13714087,95838.0,95828.0,0.0001706]
[1735246776382,0.10398632,95829.0,95828.0,0.00032559]
[1735246776595,0.25398632,95829.0,95828.0,0.00032559]
[1735246776838,0.4282314,95829.0,95828.0,0.00032559]
[1735246777069,0.208755,95806.0,95803.0,0.0001706]
[1735246777288,0.3300548,95804.0,95803.0,0.0001706]
[1735246777501,0.37688632,95804.0,95803.0,0.0001706]
[1735246778127,0.4759548,95804.0,95803.0,0.0001706]
[1735246778342,0.57994112,95804.0,95803.0,0.0011706]
[1735246778555,0.57994112,95804.0,95803.0,0.0001706]
[1735246778960,0.07606848,95793.0,95791.0,0.0002]
[1735246779169,0.5388378,95793.0,95792.0,0.00032582]
[1735246780127,0.25398632,95793.0,95792.0,0.00032582]
[1735246780324,0.40481538,95793.0,95792.0,0.00032582]
[1735246780959,0.40981538,95793.0,95792.0,0.00032582]
[1735246781395,0.43481538,95793.0,95792.0,0.00032582]
[1735246782230,0.43481538,95793.0,95760.0,0.0001706]
[1735246782231,0.07606848,95780.0,95760.0,0.0001706]
[1735246782439,0.3587469,95793.0,95760.0,0.0001706]
[1735246782440,0.20885,95763.0,95760.0,0.0001706]
[1735246782646,0.25398632,95762.0,95760.0,0.0001706]
[1735246783704,0.25398632,95762.0,95734.0,0.02393152]
[1735246783931,0.13714087,95750.0,95729.0,0.02393152]
[1735246784155,0.10398632,95749.0,95732.0,0.2090866]
[1735246784586,0.10398632,95749.0,95732.0,0.0001706]
[1735246784969,0.13714087,95742.0,95732.0,0.0001706]
[1735246785232,0.10398632,95741.0,95732.0,0.0001706]
[1735246786446,0.287608,95736.0,95732.0,0.0001706]
[1735246786620,0.208912,95734.0,95732.0,0.0001706]
[1735246786991,0.27698632,95733.0,95732.0,0.0001706]
[1735246787203,0.25398632,95733.0,95732.0,0.0001706]
[1735246787409,0.46290032,95733.0,95732.0,0.0001706]
[1735246787613,0.53800045,95733.0,95732.0,0.0001706]
[1735246787848,0.32908645,95733.0,95732.0,0.0001706]
[1735246788255,0.32924078,95733.0,95732.0,0.0001706]
[1735246788471,0.42830926,95733.0,95732.0,0.0001706]
[1735246788678,0.45678465,95733.0,95732.0,0.0001706]
[1735246788870,0.13714087,95710.0,95673.0,0.1]
[1735246789078,0.11770041,95709.0,95680.0,0.2724484]
[1735246789294,0.10398632,95705.0,95680.0,0.0144194]
[1735246789514,0.15,95704.0,95680.0,0.0144194]
[1735246789737,0.04218948,95709.0,95681.0,0.00104517]